{"text_format":"1","workbook":"xlsx","n_sheets":2,"sheets":["Sürekli","Geçici Görev Yolluğu"],"not_rendered":{"charts":0,"images":0,"macros":1,"external_links":0,"defined_names":2,"comments":0,"pivot_tables":0},"unopened":[],"bounds":{"document_bytes":16777216,"sheet_cells":100000,"rows_first":2000,"rows_last":500,"rows_between":2000,"halvings":0,"cell_chars":16384,"cell_head_chars":4096},"cells_cut":0,"cells_raw":0,"read":"whole","date_system":"1900"}

{"sheet":"Sürekli","index":0,"n_rows":101,"n_cols":78,"rows_kept":101,"cut":false,"hidden":false,"merged":[[0,51,0,59],[0,44,0,50],[1,44,1,50],[2,9,2,17],[0,0,0,8],[0,9,0,17],[0,18,4,43],[1,0,1,8],[1,9,1,17],[2,0,2,8],[4,44,4,50],[3,0,3,8],[3,9,3,17],[3,44,3,51],[3,52,3,59],[2,44,2,54],[2,55,2,59],[5,0,7,8],[5,9,7,17],[5,51,7,59],[8,29,8,32],[8,33,8,36],[8,37,8,40],[4,0,4,8],[4,9,4,17],[4,51,4,59],[8,41,8,43],[8,51,8,59],[7,47,7,50],[6,41,6,50],[5,37,5,50],[5,18,7,21],[5,22,5,32],[5,33,7,36],[6,22,7,24],[6,37,7,40],[6,25,7,28],[6,29,7,32],[7,41,7,43],[7,44,7,46],[11,51,11,59],[11,0,11,8],[9,41,9,43],[9,51,9,59],[8,44,8,46],[9,44,9,46],[8,47,8,50],[9,47,9,50],[9,0,9,8],[9,18,9,21],[9,22,9,24],[9,25,9,28],[9,29,9,32],[9,33,9,36],[9,37,9,40],[8,0,8,8],[8,9,8,17],[8,18,8,21],[8,22,8,24],[8,25,8,28],[9,9,9,17],[12,51,12,59],[14,0,14,8],[14,9,14,17],[14,18,14,21],[14,22,14,24],[11,25,11,28],[10,33,10,36],[10,37,10,40],[10,41,10,43],[10,51,10,59],[10,0,10,8],[10,9,10,17],[10,18,10,21],[10,22,10,24],[10,25,10,28],[10,29,10,32],[11,18,11,21],[11,29,11,32],[11,33,11,36],[10,44,10,46],[10,47,10,50],[11,47,11,50],[11,37,11,40],[11,41,11,43],[13,0,13,8],[13,18,13,21],[13,22,13,24],[13,25,13,28],[13,29,13,32],[13,33,13,36],[13,37,13,40],[13,41,13,43],[13,51,13,59],[12,0,12,8],[12,9,12,17],[12,18,12,21],[12,22,12,24],[12,25,12,28],[12,29,12,32],[12,33,12,36],[12,37,12,40],[12,41,12,43],[14,25,14,28],[14,29,14,32],[15,33,15,36],[15,37,15,40],[15,41,15,43],[14,33,14,36],[14,37,14,40],[14,41,14,43],[16,51,16,59],[14,51,14,59],[16,0,16,8],[16,9,16,17],[16,18,16,21],[16,22,16,24],[16,25,16,28],[16,29,16,32],[15,51,15,59],[15,0,15,8],[15,9,15,17],[15,18,15,21],[15,22,15,24],[15,25,15,28],[15,29,15,32],[18,51,18,59],[18,0,18,8],[18,9,18,17],[18,18,18,21],[18,22,18,24],[18,25,18,28],[18,29,18,32],[17,33,17,36],[17,37,17,40],[17,41,17,43],[17,51,17,59],[17,0,17,8],[17,9,17,17],[17,18,17,21],[17,22,17,24],[17,25,17,28],[17,29,17,32],[19,33,19,36],[19,37,19,40],[19,41,19,43],[19,51,19,59],[19,0,19,8],[19,9,19,17],[19,18,19,21],[19,22,19,24],[19,25,19,28],[19,29,19,32],[19,44,19,46],[19,47,19,50],[20,51,20,59],[20,0,20,8],[20,9,20,17],[20,18,20,21],[20,22,20,24],[20,25,20,28],[20,29,20,32],[20,44,20,46],[20,47,20,50],[21,9,21,17],[50,5,50,22],[32,39,32,41],[33,16,33,27],[33,39,33,41],[32,8,32,14],[33,8,33,14],[32,16,32,35],[20,33,20,36],[20,37,20,40],[20,41,20,43],[22,37,22,40],[22,41,22,43],[21,18,21,21],[21,22,21,24],[21,25,21,28],[21,29,21,32],[49,3,49,8],[49,9,49,13],[49,14,49,18],[29,16,29,21],[30,16,30,21],[31,35,31,39],[31,47,31,57],[31,41,31,46],[23,0,23,28],[23,29,23,32],[23,33,23,36],[23,37,23,40],[23,41,23,43],[23,51,23,59],[23,44,23,46],[23,47,23,50],[31,7,31,14],[31,16,31,32],[12,47,12,50],[13,47,13,50],[14,47,14,50],[15,47,15,50],[16,47,16,50],[17,47,17,50],[18,47,18,50],[11,9,11,17],[13,9,13,17],[11,44,11,46],[12,44,12,46],[13,44,13,46],[14,44,14,46],[15,44,15,46],[16,44,16,46],[17,44,17,46],[18,44,18,46],[18,33,18,36],[18,37,18,40],[18,41,18,43],[16,33,16,36],[16,37,16,40],[16,41,16,43],[11,22,11,24],[21,44,21,46],[100,0,100,56],[33,45,33,48],[25,1,25,17],[25,41,25,59],[25,18,25,31],[25,32,25,40],[22,22,22,24],[22,25,22,28],[22,29,22,32],[22,44,22,46],[22,47,22,50],[21,33,21,36],[21,37,21,40],[21,41,21,43],[21,51,21,59],[22,33,22,36],[21,47,21,50],[26,0,26,58],[22,51,22,59],[22,0,22,8],[22,9,22,17],[22,18,22,21],[21,0,21,8]]}
["Adı Soyadı",null,null,null,null,null,null,null,null,"aaa aaaa",null,null,null,null,null,null,null,null,"YURTİÇİ SÜREKLİ GÖREV\nYOLLUĞU BİLDİRİMİ",null,null,null,null,null,null,null,null,null,null,null,null,null,null,null,null,null,null,null,null,null,null,null,null,null,"Dairesi",null,null,null,null,null,null,"CÜ Sosyal Bilimler Enst."]
["Ünvanı",null,null,null,null,null,null,null,null,"Arş. Gör.",null,null,null,null,null,null,null,null,null,null,null,null,null,null,null,null,null,null,null,null,null,null,null,null,null,null,null,null,null,null,null,null,null,null,"Bütçe Yılı",null,null,null,null,null,null,null,2,0,1,6]
["Aylık Kadro Derecesi",null,null,null,null,null,null,null,null,"1/4",null,null,null,null,null,null,null,null,null,null,null,null,null,null,null,null,null,null,null,null,null,null,null,null,null,null,null,null,null,null,null,null,null,null,"Önceden Avans Almışsa Aldığı"]
["ve  Ek Göstergesi",null,null,null,null,null,null,null,null,"Gösterge Seç",null,null,null,null,null,null,null,null,null,null,null,null,null,null,null,null,null,null,null,null,null,null,null,null,null,null,null,null,null,null,null,null,null,null,"Saymanlık ve Tarihi"]
["Gündeliği",null,null,null,null,null,null,null,null,29.5,null,null,null,null,null,null,null,null,null,null,null,null,null,null,null,null,null,null,null,null,null,null,null,null,null,null,null,null,null,null,null,null,null,null,"Atama Tarihi",null,null,null,null,null,null,"2016-01-15"]
["Nereden Nereye\nGidildiği",null,null,null,null,null,null,null,null,"Adı Soyadı",null,null,null,null,null,null,null,null,"Akrabalık Derecesi",null,null,null,"Gündelikler",null,null,null,null,null,null,null,null,null,null,"Taşıt\nÜcreti\n(2)",null,null,null,"Yer Değiştirme Gideri",null,null,null,null,null,null,null,null,null,null,null,null,null,"Toplam \n(1+2+3+4)"]
[null,null,null,null,null,null,null,null,null,null,null,null,null,null,null,null,null,null,null,null,null,null,"Gün\nSayısı",null,null,"Yevmiye",null,null,null,"Tutarı\n(1)",null,null,null,null,null,null,null,"Sabit\nUnsur (3)",null,null,null,"Değişken Unsur"]
[null,null,null,null,null,null,null,null,null,null,null,null,null,null,null,null,null,null,null,null,null,null,null,null,null,null,null,null,null,null,null,null,null,null,null,null,null,null,null,null,null,"Mesafe",null,null,"Bir Km",null,null,"Tutar (4)"]
["İstanbul-Sivas",null,null,null,null,null,null,null,null,{"$f":"J1","v":"aaa aaaa"},null,null,null,null,null,null,null,null,"Kendisi",null,null,null,1,null,null,{"$f":"J5","v":29.5},null,null,null,{"$f":"W9*Z9","v":29.5},null,null,null,55,null,null,null,{"$f":"Z9*20","v":590},null,null,null,891,null,null,{"$f":"(J5*5)/100","v":1.4750000000000001},null,null,{"$f":"AP9*AS9","v":1314.2250000000001},null,null,null,{"$f":"AD9+AH9+AL9+AV9","v":1988.7250000000001}]
[null,null,null,null,null,null,null,null,null,null,null,null,null,null,null,null,null,null,null,null,null,null,1,null,null,{"$f":"J5*W10","v":29.5},null,null,null,29.5,null,null,null,{"$f":"W10*AH9","v":55},null,null,null,{"$f":"Z10*10","v":295},null,null,null,null,null,null,null,null,null,null,null,null,null,379.5]
[null,null,null,null,null,null,null,null,null,null,null,null,null,null,null,null,null,null,null,null,null,null,1,null,null,{"$f":"J5*W11","v":29.5},null,null,null,29.5,null,null,null,{"$f":"W11*AH10","v":55},null,null,null,{"$f":"Z11*10","v":295},null,null,null,null,null,null,null,null,null,null,null,null,null,379.5]
[null,null,null,null,null,null,null,null,null,null,null,null,null,null,null,null,null,null,null,null,null,null,null,null,null,{"$f":"J5*W12","v":0},null,null,null,0,null,null,null,{"$f":"W12*AH11","v":0},null,null,null,{"$f":"Z12*10","v":0},null,null,null,null,null,null,null,null,null,null,null,null,null,0]
[null,null,null,null,null,null,null,null,null,null,null,null,null,null,null,null,null,null,null,null,null,null,null,null,null,{"$f":"J5*W13","v":0},null,null,null,0,null,null,null,{"$f":"W13*AH12","v":0},null,null,null,{"$f":"Z13*10","v":0},null,null,null,null,null,null,null,null,null,null,null,null,null,0]
[null,null,null,null,null,null,null,null,null,null,null,null,null,null,null,null,null,null,null,null,null,null,null,null,null,{"$f":"J5*W14","v":0},null,null,null,0,null,null,null,{"$f":"W14*AH13","v":0},null,null,null,null,null,null,null,null,null,null,null,null,null,null,null,null,null,0]
[null,null,null,null,null,null,null,null,null,null,null,null,null,null,null,null,null,null,null,null,null,null,null,null,null,{"$f":"W15*J5","v":0},null,null,null,{"$f":"W15*Z15","v":0},null,null,null,0,null,null,null,null,null,null,null,null,null,null,null,null,null,null,null,null,null,0,null,null,null,null,null,null,null,null,null,null,null,null,null,null,null,null,null,null,null,null,null,null,null,2200,null,"Kendisi"]
[null,null,null,null,null,null,null,null,null,null,null,null,null,null,null,null,null,null,null,null,null,null,null,null,null,{"$f":"W16*J5","v":0},null,null,null,0,null,null,null,0,null,null,null,null,null,null,null,null,null,null,null,null,null,null,null,null,null,0,null,null,null,null,null,null,null,null,null,null,null,null,null,null,null,null,null,null,null,null,null,null,null,2300,null,"Eşi"]
[null,null,null,null,null,null,null,null,null,null,null,null,null,null,null,null,null,null,null,null,null,null,null,null,null,{"$f":"W17*J5","v":0},null,null,null,0,null,null,null,0,null,null,null,null,null,null,null,null,null,null,null,null,null,null,null,null,null,0,null,null,null,null,null,null,null,null,null,null,null,null,null,null,null,null,null,null,null,null,null,null,null,2700,null,"Annesi"]
[null,null,null,null,null,null,null,null,null,null,null,null,null,null,null,null,null,null,null,null,null,null,null,null,null,{"$f":"W18*J5","v":0},null,null,null,0,null,null,null,0,null,null,null,null,null,null,null,null,null,null,null,null,null,null,null,null,null,0,null,null,null,null,null,null,null,null,null,null,null,null,null,null,null,null,null,null,null,null,null,null,null,3600,null,"Babası"]
[null,null,null,null,null,null,null,null,null,null,null,null,null,null,null,null,null,null,null,null,null,null,null,null,null,{"$f":"W19*J5","v":0},null,null,null,0,null,null,null,0,null,null,null,null,null,null,null,null,null,null,null,null,null,null,null,null,null,0,null,null,null,null,null,null,null,null,null,null,null,null,null,null,null,null,null,null,null,null,null,null,null,4800,null,"Oğlu"]
[null,null,null,null,null,null,null,null,null,null,null,null,null,null,null,null,null,null,null,null,null,null,null,null,null,{"$f":"W20*J5","v":0},null,null,null,0,null,null,null,0,null,null,null,null,null,null,null,null,null,null,null,null,null,null,null,null,null,0,null,null,null,null,null,null,null,null,null,null,null,null,null,null,null,null,null,null,null,null,null,null,null,5300,null,"Kızı"]
[null,null,null,null,null,null,null,null,null,null,null,null,null,null,null,null,null,null,null,null,null,null,null,null,null,{"$f":"W21*J5","v":0},null,null,null,0,null,null,null,0,null,null,null,null,null,null,null,null,null,null,null,null,null,null,null,null,null,0,null,null,null,null,null,null,null,null,null,null,null,null,null,null,null,null,null,null,null,null,null,null,null,6400]
[null,null,null,null,null,null,null,null,null,null,null,null,null,null,null,null,null,null,null,null,null,null,null,null,null,{"$f":"W22*J5","v":0},null,null,null,0,null,null,null,0,null,null,null,null,null,null,null,null,null,null,null,null,null,null,null,null,null,0]
[null,null,null,null,null,null,null,null,null,null,null,null,null,null,null,null,null,null,null,null,null,null,null,null,null,{"$f":"W23*J5","v":0},null,null,null,0,null,null,null,0,null,null,null,null,null,null,null,null,null,null,null,null,null,null,null,null,null,0]
["GENEL TOPLAM",null,null,null,null,null,null,null,null,null,null,null,null,null,null,null,null,null,null,null,null,null,null,null,null,null,null,null,null,null,null,null,null,null,null,null,null,null,null,null,null,null,null,null,null,null,null,null,null,null,null,{"$f":"SUM(AZ9:AZ23)","v":2747.7250000000004}]
[]
[null,"………………………..",null,null,null,null,null,null,null,null,null,null,null,null,null,null,null,null,"CÜ Sosyal Bilimler Enstitüsüne atanan ",null,null,null,null,null,null,null,null,null,null,null,null,null,{"$f":"J1","v":"aaa aaaa"},null,null,null,null,null,null,null,null," ve/aile fertlerine ait yurtiçi sürekli görev yolluğu olarak"]
[{"$f":"CONCATENATE(D50,F51,O50)","v":"tahakkuk eden  Ikibinyediyüzkırkyedi TL ve Yetmişüç KURUŞ 'u gösterir bildirimdir."}]
[]
[]
[null,null,null,null,null,null,null,null,null,null,null,null,null,null,null,null,{"$f":"AZ5+1","v":"2016-01-16"}]
[null,null,null,null,null,null,null,null,null,null,null,null,null,null,null,null,"Birim Yetkilisi*"]
[null,null,null,null,null,null,null,"Adı Soyadı",null,null,null,null,null,null,null,":","Prof. Dr. ",null,null,null,null,null,null,null,null,null,null,null,null,null,null,null,null,null,null,null,null,null,null,null,null,{"$f":"J2","v":"Arş. Gör."},null,null,null,null,null,{"$f":"J1","v":"aaa aaaa"}]
[null,null,null,null,null,null,null,null,"Ünvanı",null,null,null,null,null,null,":","Müdür"]
[null,null,null,null,null,null,null,null,"İmzası",null,null,null,null,null,null,":",null,null,null,null,null,null,null,null,null,null,null,null,null,null,null,null,null,null,null,null,null,null,null,null,null,null,null,null,null,"İmza"]
[]
[" (1) Bu kısım bildirim sahibinin atama işleminden"]
["bilgisi olan amir tarafından imzalanacaktır."]
[]
[]
[]
[]
[]
[]
[]
[]
[]
[]
[]
[]
[null,null,null,"tahakkuk eden  ",null,null,null,null,null,{"$f":"AZ24","v":2747.7250000000004},null,null,null,null," 'u gösterir bildirimdir."]
[null,null,null,null,null,{"$f":"ParaCevir(AZ24)","v":"Ikibinyediyüzkırkyedi TL ve Yetmişüç KURUŞ"}]
[]
[null,null,null,null,null,null," ("," TL) "]
[]
[]
[]
[]
[null,null,null,null,null,null,null,null,null,null,null,null,null,1]
[]
[]
[]
[]
[]
[]
[]
[]
[]
[]
[]
[]
[]
[]
[]
[]
[]
[]
[]
[]
[]
[]
[]
[]
[]
[]
[]
[]
[]
[]
[]
[]
[]
[]
[]
[]
[]
[]
[]
[]
[]
[]
["Binali KOÇ\nCumhuriyet Ünivetsitesi Sosyal Bilimler Enstitüsü\nEnstitü Sekreteri"]

{"sheet":"Geçici Görev Yolluğu","index":1,"n_rows":101,"n_cols":77,"rows_kept":101,"cut":false,"hidden":false,"merged":[[46,5,46,25],[48,7,48,8],[29,11,29,15],[29,17,29,30],[29,43,29,46],[30,11,30,15],[30,17,30,30],[30,43,30,46],[28,12,28,15],[28,37,28,43],[28,44,28,57],[28,17,28,34],[20,0,20,9],[22,17,22,19],[45,4,45,9],[45,10,45,14],[45,15,45,21],[23,0,23,53],[26,17,26,23],[27,17,27,23],[22,0,22,16],[20,10,20,13],[20,14,20,19],[33,0,33,16],[20,55,20,57],[20,58,20,60],[22,20,22,24],[22,25,22,28],[22,29,22,33],[22,34,22,60],[20,32,20,36],[20,37,20,41],[20,42,20,44],[20,45,20,48],[20,49,20,54],[20,20,20,23],[20,24,20,31],[19,37,19,41],[19,42,19,44],[19,45,19,48],[19,49,19,54],[19,55,19,57],[19,58,19,60],[19,0,19,9],[19,32,19,36],[19,10,19,31],[18,37,18,41],[18,42,18,44],[18,45,18,48],[18,49,18,54],[18,55,18,57],[18,58,18,60],[18,0,18,9],[18,32,18,36],[18,10,18,11],[18,12,18,31],[17,10,17,31],[17,37,17,41],[17,42,17,44],[17,45,17,48],[17,49,17,54],[17,55,17,57],[17,58,17,60],[17,0,17,9],[17,32,17,36],[16,37,16,41],[16,42,16,44],[16,45,16,48],[16,49,16,54],[16,55,16,57],[16,58,16,60],[16,0,16,9],[16,10,16,20],[16,21,16,23],[16,24,16,27],[16,28,16,31],[16,32,16,36],[15,37,15,41],[15,42,15,44],[15,45,15,48],[15,49,15,54],[15,55,15,57],[15,58,15,60],[15,0,15,9],[15,10,15,20],[15,21,15,23],[15,24,15,27],[15,28,15,31],[15,32,15,36],[14,37,14,41],[14,42,14,44],[14,45,14,48],[14,49,14,54],[14,55,14,57],[14,58,14,60],[14,0,14,9],[14,10,14,20],[14,21,14,23],[14,24,14,27],[14,28,14,31],[14,32,14,36],[13,49,13,54],[13,55,13,57],[13,58,13,60],[13,0,13,9],[13,10,13,20],[13,21,13,23],[13,24,13,27],[13,28,13,31],[13,32,13,36],[12,0,12,9],[12,10,12,20],[12,21,12,23],[12,24,12,27],[12,28,12,31],[12,32,12,36],[13,37,13,41],[13,42,13,44],[13,45,13,48],[11,55,11,57],[11,58,11,60],[10,49,10,54],[10,55,10,57],[10,58,10,60],[12,37,12,41],[12,42,12,44],[12,45,12,48],[12,49,12,54],[12,55,12,57],[12,58,12,60],[11,45,11,48],[11,49,11,54],[9,58,9,60],[10,0,10,9],[10,10,10,20],[10,21,10,23],[10,24,10,27],[10,28,10,31],[10,32,10,36],[10,37,10,41],[10,42,10,44],[10,45,10,48],[9,32,9,36],[9,37,9,41],[9,42,9,44],[9,45,9,48],[9,49,9,54],[9,55,9,57],[9,0,9,9],[9,24,9,27],[9,28,9,31],[8,0,8,9],[8,10,8,20],[8,21,8,23],[8,24,8,27],[8,28,8,31],[8,32,8,36],[9,10,9,14],[9,15,9,20],[9,21,9,23],[11,0,11,9],[11,10,11,14],[11,16,11,20],[11,21,11,23],[11,24,11,27],[11,28,11,31],[11,32,11,36],[11,37,11,41],[11,42,11,44],[8,55,8,57],[8,58,8,60],[7,45,7,48],[7,49,7,54],[7,55,7,57],[7,58,7,60],[8,37,8,41],[8,42,8,44],[8,45,8,48],[8,49,8,54],[7,0,7,9],[7,10,7,14],[7,16,7,20],[7,21,7,23],[7,24,7,27],[7,28,7,31],[7,32,7,36],[7,37,7,41],[7,42,7,44],[6,28,6,31],[4,0,5,9],[4,10,5,20],[4,21,4,36],[4,37,4,48],[4,49,5,54],[4,55,4,60],[5,21,5,23],[5,24,5,27],[5,28,5,31],[5,32,5,36],[6,58,6,60],[6,32,6,36],[6,37,6,41],[6,42,6,44],[6,45,6,48],[6,49,6,54],[6,55,6,57],[100,0,100,60],[2,49,2,54],[2,55,2,60],[3,0,3,9],[3,10,3,20],[3,49,3,54],[3,59,3,60],[0,0,0,9],[0,10,0,20],[0,21,3,48],[1,0,1,9],[1,10,1,20],[2,0,2,9],[2,10,2,14],[2,15,2,20],[5,37,5,41],[5,42,5,44],[5,45,5,48],[5,55,5,57],[5,58,5,60],[6,0,6,9],[6,10,6,20],[6,21,6,23],[6,24,6,27]]}
["Adı Soyadı",null,null,null,null,null,null,null,null,null,"aaa aaa",null,null,null,null,null,null,null,null,null,null,"YURTİÇİ GEÇİCİ GÖREV YOLLUĞU\nBİLDİRİMİ"]
["Ünvanı",null,null,null,null,null,null,null,null,null,"Dr. Öğr.Üyesi"]
["Aylık Kadro Derecesi ve \nEk Göstergesi",null,null,null,null,null,null,null,null,null,"1/4",null,null,null,null,3600,null,null,null,null,null,null,null,null,null,null,null,null,null,null,null,null,null,null,null,null,null,null,null,null,null,null,null,null,null,null,null,null,null,"Dairesi",null,null,null,null,null,"Cumhuriyet Üniversitesi Sosyal Bilimler Enst."]
["Gündeliği",null,null,null,null,null,null,null,null,null,40.049999999999997,null,null,null,null,null,null,null,null,null,null,null,null,null,null,null,null,null,null,null,null,null,null,null,null,null,null,null,null,null,null,null,null,null,null,null,null,null,null,"Bütçe Yılı",null,null,null,null,null,2,0,1,8]
["Otuma ve Yolculuk Tarihleri",null,null,null,null,null,null,null,null,null,"Alacaklının Nereden Nereye Yolculuk Ettiği veya Nerede Oturduğu",null,null,null,null,null,null,null,null,null,null,"Yolculuk ve Oturma Günleri",null,null,null,null,null,null,null,null,null,null,null,null,null,null,null,"Yol Giderleri",null,null,null,null,null,null,null,null,null,null,null,"Genel Toplam \n(1+2)",null,null,null,null,null,"Hareket Saatleri"]
[null,null,null,null,null,null,null,null,null,null,null,null,null,null,null,null,null,null,null,null,null,"Gün Sayısı",null,null,"Yevmiye",null,null,null,"Bir Günlüğü",null,null,null,"Tutarı (1)",null,null,null,null,"Çeşidi",null,null,null,null,"Mevkii",null,null,"Tutar (2)",null,null,null,null,null,null,null,null,null,"Gidiş",null,null,"Dönüş"]
["2016-02-01",null,null,null,null,null,null,null,null,null,"Ev-Terminal",null,null,null,null,null,null,null,null,null,null,null,null,null,null,null,null,null,null,null,null,null,null,null,null,null,null,"Taksi",null,null,null,null,null,null,null,15,null,null,null,{"$f":"AG7+AT7","v":15}]
[{"$f":"A7","v":"2016-02-01"},null,null,null,null,null,null,null,null,null,"İstanbul",null,null,null,null,"-","Sivas",null,null,null,null,0,null,null,{"$f":"K4*V8","v":0},null,null,null,{"$f":"K4*V8","v":0},null,null,null,{"$f":"V8*K4","v":0},null,null,null,null,"Otobüs",null,null,null,null,null,null,null,50,null,null,null,{"$f":"AG8+AT8","v":50}]
[{"$f":"A8","v":"2016-02-01"},null,null,null,null,null,null,null,null,null,"Terminal-Kampüs",null,null,null,null,null,null,null,null,null,null,null,null,null,null,null,null,null,null,null,null,null,null,null,null,null,null,"Taksi",null,null,null,null,null,null,null,15,null,null,null,15]
[{"$f":"A9+V8","v":"2016-02-01"},null,null,null,null,null,null,null,null,null,{"$f":"Q8","v":"Sivas"},null,null,null,null,"  'da",null,null,null,null,null,1,null,null,{"$f":"K4","v":40.049999999999997},null,null,null,{"$f":"K4","v":40.049999999999997},null,null,null,{"$f":"V10*K4","v":40.049999999999997},null,null,null,null,null,null,null,null,null,null,null,null,null,null,null,null,40.049999999999997]
[{"$f":"(A10+V12)+(V10-1)","v":"2016-02-01"},null,null,null,null,null,null,null,null,null,"Kampüs-Terminal",null,null,null,null,null,null,null,null,null,null,null,null,null,null,null,null,null,null,null,null,null,null,null,null,null,null,"Taksi",null,null,null,null,null,null,null,15,null,null,null,15]
[{"$f":"A11","v":"2016-02-01"},null,null,null,null,null,null,null,null,null,{"$f":"Q8","v":"Sivas"},null,null,null,null,"-",{"$f":"K8","v":"İstanbul"},null,null,null,null,0,null,null,{"$f":"K4*V12","v":0},null,null,null,{"$f":"K4*V12","v":0},null,null,null,{"$f":"V12*K4","v":0},null,null,null,null,"Otobüs",null,null,null,null,null,null,null,50,null,null,null,50]
[{"$f":"A12","v":"2016-02-01"},null,null,null,null,null,null,null,null,null,"Ev-Terminal",null,null,null,null,null,null,null,null,null,null,null,null,null,null,null,null,null,null,null,null,null,null,null,null,null,null,"Taksi",null,null,null,null,null,null,null,15,null,null,null,15,null,null,null,null,null,null,null,null,null,null,null,null,null,null,null,null,null,null,null,null,null,null,null,null,null,null,2200]
[null,null,null,null,null,null,null,null,null,null,null,null,null,null,null,null,null,null,null,null,null,null,null,null,null,null,null,null,null,null,null,null,null,null,null,null,null,null,null,null,null,null,null,null,null,null,null,null,null,null,null,null,null,null,null,null,null,null,null,null,null,null,null,null,null,null,null,null,null,null,null,null,null,null,null,null,2300]
[null,null,null,null,null,null,null,null,null,null,null,null,null,null,null,null,null,null,null,null,null,null,null,null,null,null,null,null,null,null,null,null,null,null,null,null,null,null,null,null,null,null,null,null,null,null,null,null,null,null,null,null,null,null,null,null,null,null,null,null,null,null,null,null,null,null,null,null,null,null,null,null,null,null,null,null,2700]
[null,null,null,null,null,null,null,null,null,null,null,null,null,null,null,null,null,null,null,null,null,null,null,null,null,null,null,null,null,null,null,null,null,null,null,null,null,null,null,null,null,null,null,null,null,null,null,null,null,null,null,null,null,null,null,null,null,null,null,null,null,null,null,null,null,null,null,null,null,null,null,null,null,null,null,null,3000]
[null,null,null,null,null,null,null,null,null,null,null,null,null,null,null,null,null,null,null,null,null,null,null,null,null,null,null,null,null,null,null,null,null,null,null,null,null,null,null,null,null,null,null,null,null,null,null,null,null,null,null,null,null,null,null,null,null,null,null,null,null,null,null,null,null,null,null,null,null,null,null,null,null,null,null,null,3600]
["T.C. Kimlik No*",null,null,null,null,null,null,null,null,null,null,null,null,null,null,null,null,null,null,null,null,null,null,null,null,null,null,null,null,null,null,null,null,null,null,null,null,null,null,null,null,null,null,null,null,null,null,null,null,null,null,null,null,null,null,null,null,null,null,null,null,null,null,null,null,null,null,null,null,null,null,null,null,null,null,null,5300]
["Banka IBAN Numarası*",null,null,null,null,null,null,null,null,null,"TR",null,null,null,null,null,null,null,null,null,null,null,null,null,null,null,null,null,null,null,null,null,null,null,null,null,null,null,null,null,null,null,null,null,null,null,null,null,null,null,null,null,null,null,null,null,null,null,null,null,null,null,null,null,null,null,null,null,null,null,null,null,null,null,null,null,5800]
["Banka Şube Adı*",null,null,null,null,null,null,null,null,null,null,null,null,null,null,null,null,null,null,null,null,null,null,null,null,null,null,null,null,null,null,null,null,null,null,null,null,null,null,null,null,null,null,null,null,null,null,null,null,null,null,null,null,null,null,null,null,null,null,null,null,null,null,null,null,null,null,null,null,null,null,null,null,null,null,null,6400]
["Kadro Dere. ve Ek Göst.*",null,null,null,null,null,null,null,null,null,null,null,null,null,null,null,null,null,null,null,"Telefon*",null,null,null,null,null,null,null,null,null,null,null,{"$f":"SUM(AG7:AG20)","v":40.049999999999997},null,null,null,null,null,null,null,null,null,null,null,null,{"$f":"SUM(AT7:AT20)","v":160},null,null,null,{"$f":"SUM(AX7:AX20)","v":200.05},null,null,null,null,null,null,null,null,null,null,null,null,null,null,null,null,null,null,null,null,null,null,null,null,null,null,8000]
[]
["Yüksek Lisans Tez Savunması sınavını yapmak",null,null,null,null,null,null,null,null,null,null,null,null,null,null,null,null,"üzere",null,null,{"$f":"A7","v":"2016-02-01"},null,null,null,null,"tarihinden",null,null,null,{"$f":"A13","v":"2016-02-01"},null,null,null,null,"tarihine kadar süren görev ve oturma gündeliklerinin yolculuk gideri olarak"]
[{"$f":"CONCATENATE(E46,F47,G49,AX21,H49,P46)","v":"tahakkuk eden  Ikiyüz TL ve Beş KURUŞ (200,05 TL)   gösterir bildirimdir."}]
[]
[]
[null,null,null,null,null,null,null,null,null,null,null,null,null,null,null,null,null,{"$f":"A13","v":"2016-02-01"}]
[null,null,null,null,null,null,null,null,null,null,null,null,null,null,null,null,null,"Birim Yetkilisi*"]
[null,null,null,null,null,null,null,null,null,null,null,null,"Adı Soyadı",null,null,null,":","Prof. Dr. ",null,null,null,null,null,null,null,null,null,null,null,null,null,null,null,null,null,null,null,{"$f":"K2","v":"Dr. Öğr.Üyesi"},null,null,null,null,null,null,{"$f":"K1","v":"aaa aaa"}]
[null,null,null,null,null,null,null,null,null,null,null,"Ünvanı",null,null,null,null,":","Müdür"]
[null,null,null,null,null,null,null,null,null,null,null,"İmzası",null,null,null,null,":",null,null,null,null,null,null,null,null,null,null,null,null,null,null,null,null,null,null,null,null,null,null,null,null,null,null,"İmza"]
[]
[]
["* İlgili tarafından doldurulacaktır."]
[]
[]
[]
[]
[]
[]
[]
[]
[]
[]
[]
[null,null,null,null,"tahakkuk eden  ",null,null,null,null,null,{"$f":"AX21","v":200.05},null,null,null,null,"  gösterir bildirimdir."]
[null,null,null,null,null,{"$f":"ParaCevir(AX21)","v":"Ikiyüz TL ve Beş KURUŞ"}]
[]
[null,null,null,null,null,null," ("," TL) "]
[]
[]
[]
[0]
[1]
[]
[]
["SEÇİNİZ"]
["Doktora Yeterlilik sınavını yapmak"]
["Doktora Tez Savunması sınavını yapmak"]
["Yüksek Lisans Tez Savunması sınavını yapmak"]
["Tez İzleme sınavını yapmak"]
["Toplantıya katılmak"]
["Konferansa katılmak"]
["Seminere katılmak"]
[]
[]
[]
[]
[]
[]
[]
[]
[]
[]
[]
[]
[]
[]
[]
[]
[]
[]
[]
[]
[]
[]
[]
[]
[]
[]
[]
[]
[]
[]
[]
[]
[]
[]
[]
[]
["Binali KOÇ\nCumhuriyet Ünivetsitesi Sosyal Bilimler Enstitüsü\nEnstitü Sekreteri"]